Cogmind - Beta 14 @@@ ROGUE MODE // 2024.09.04 @ 23:07:15 Player: THN-L0C Result: Destroyed by 8R-AWN with 8R-AWN's Boregun Performance ------------- Evolutions (1) 500 Regions Visited (5) 1000 Robots Destroyed (54) 270 Value Destroyed (1279) 1279 Prototype IDs (23) 460 Alien Tech Used (0) 0 Bonus (263) 263 TOTAL SCORE: 3772 Bonus ------- High Alert Combat Kills 94 Aligned with FarCom 300 Friendly Fire -131 Cogmind --------- Core Integrity 0/400 Matter 276/300 Energy 53/265 System Corruption 2% Temperature Cool (18) Movement Treading (240) Ox1 Location -9/Exiles Parts ------- > --- POWER (1) -------- Improved Ion Engine > --- PROPULSION (2) --- Improved Treads Improved Treads > --- UTILITY (4) ------ Medium Storage Unit Large Storage Unit Weapon Shielding Light Armor Plating > --- WEAPON (2) ------- YOLO Cannon > --- INVENTORY (15) --- Light Treads Improved Treads Improved Treads Armored Wheel Compact Matter Pod (150) Compact Matter Pod (150) Heavy Assault Rifle Heavy Assault Rifle Improved Light Cannon Improved Light Cannon EMP Blaster Plasma Cutter Peak State ------------ > --- POWER ------------ Improved Ion Engine > --- PROPULSION ------- Improved Treads Improved Treads > --- UTILITY ---------- Medium Storage Unit Large Storage Unit Weapon Shielding Light Armor Plating > --- WEAPON ----------- YOLO Cannon > --- INVENTORY -------- Light Treads Improved Treads Improved Treads Armored Wheel Compact Matter Pod Compact Matter Pod Heavy Assault Rifle Heavy Assault Rifle Improved Light Cannon Improved Light Cannon EMP Blaster Plasma Cutter [Rating: 32] Favorites ----------- Power Ion Engine Engine Ion Engine Propulsion Improved Treads Treads Improved Treads Wheel Armored Wheel Utility Medium Storage Unit Device Seismic Detector Storage Medium Storage Unit Protection Core Shielding Weapon Heavy Assault Rifle Energy Cannon YOLO Cannon Ballistic Gun Heavy Assault Rifle Ballistic Cannon Improved Light Cannon Launcher EMP Blaster Build | -11 -10 -10 -9 -9 -9 ------- Run | Yrd Mat Min Mat Min Exi Slots Evolved 2 | . . . 2 . . Power . | . . . . . . Propulsion . | . . . . . . Utility 2 | . . . 2 . . Weapon . | . . . . . . Parts Attached 51 | 7 10 5 23 . 6 Power 4 | 1 . 1 2 . . Engine 4 | 1 . 1 2 . . Core . | . . . . . . Reactor . | . . . . . . Propulsion 14 | 2 6 2 2 . 2 Treads 13 | 2 6 2 1 . 2 Leg . | . . . . . . Wheel 1 | . . . 1 . . Hover . | . . . . . . Flight . | . . . . . . Utility 12 | 2 1 1 8 . . Device 3 | 1 . . 2 . . Storage 4 | 1 . . 3 . . Processor . | . . . . . . Hackware . | . . . . . . Protection 5 | . 1 1 3 . . Artifact . | . . . . . . Weapon 21 | 2 3 1 11 . 4 Energy Gun . | . . . . . . Energy Cannon 2 | . . . . . 2 Ballistic Gun 14 | 2 3 1 7 . 1 Ballistic Cannon 2 | . . . 2 . . Launcher 3 | . . . 2 . 1 Special Weapon . | . . . . . . Impact Weapon . | . . . . . . Slashing Weapon . | . . . . . . Piercing Weapon . | . . . . . . Special Melee Weapon . | . . . . . . Unidentified Prototypes . | . . . . . . Parts Lost 9 | . . . 9 . . Power 1 | . . . 1 . . Propulsion 2 | . . . 2 . . Utility 3 | . . . 3 . . Weapon 3 | . . . 3 . . Highest Loss Streak 6 | . . . 6 . . To Critical Strikes . | . . . . . . Average Slot Usage (%) 88 | . 98 100 77 100 94 Engine 9 | . 14 14 5 11 11 Treads 19 | . 26 28 14 11 12 Wheel 2 | . . . 2 11 9 Device 4 | . 8 . 7 . . Storage 16 | . 14 14 16 22 22 Protection 11 | . 5 14 8 22 22 Ballistic Gun 20 | . 27 28 19 11 5 Ballistic Cannon 2 | . . . 2 11 5 Peak Build Rating 32 | 7 12 18 22 16 32 Average Rating 14 | 5 11 12 15 15 22 On Entrance 11 | . 7 12 18 16 15 Naked Turns . | . . . . . . Heaviest Build 59 | 13 17 26 50 48 59 Greatest Support 46 | 40 46 46 42 12 46 Greatest Overweight (x) 5 | 3 5 . 4 3 4 Average Overweight (x) 1 | . . . 1 3 3 Largest Inventory Capacity 15 | 8 8 8 15 15 15 Average Capacity 11 | 7 8 8 12 15 15 Most Carried 15 | 1 8 8 15 15 15 Average Carried 9 | . 6 8 10 14 14 Final Capacity 15 | 8 8 8 15 15 15 Final Carried 15 | 1 8 8 15 15 12 Class Distribution -------------------- 82% | Mutant 17% | Scavenger-Mutant Dominant Class ---------------- Mutant | -10/Materials Mutant | -10/Mines Mutant | -9/Materials Scavenger-Mutant | -9/Mines Scavenger-Mutant | -9/Exiles Resources | -11 -10 -10 -9 -9 -9 ----------- Run | Yrd Mat Min Mat Min Exi Matter Collected 2501 | 292 41 26 1307 757 78 Remotely . | . . . . . . Salvage Created 1898 | 68 159 104 1487 . 80 Parts 134 | 10 16 6 102 . . Haulers Intercepted 2 | . . . 2 . . Recyclers Shooed 2 | . . 1 1 . . Parts Field Recycled . | . . . . . . Retrieved Matter . | . . . . . . Parts Self-Destructed . | . . . . . . Prevented . | . . . . . . Kills | -11 -10 -10 -9 -9 -9 ------- Run | Yrd Mat Min Mat Min Exi Combat Hostiles Destroyed 38 | . 5 2 27 . 4 Guns 31 | . 5 2 23 . 1 Cannons 4 | . . . 4 . . AOE 3 | . . . . . 3 Classes Destroyed 12 | 1 4 2 4 . 1 Worker 3 | . 1 . 2 . . Builder 1 | . . 1 . . . Tunneler 4 | 3 . . 1 . . Hauler 2 | . . . 2 . . Recycler 3 | . . 1 2 . . Mechanic 1 | . . . 1 . . Operator 2 | . 1 . 1 . . Watcher 4 | . . . 4 . . Swarmer 8 | . 3 2 3 . . Grunt 17 | . 2 . 15 . . Sentry 9 | . . . 9 . . Assembled 4 | . . . . . 4 Best Kill Streak 6 | 2 5 2 6 . 4 Combat Bots Only 5 | . 3 2 5 . 4 Max Kills in Single Turn 2 | 1 2 1 1 . 1 Gunslinging 1 | . 1 . . . . Exploded 1 | . . . . . 1 Melee . | . . . . . . Uniques/NPCs Destroyed . | . . . . . . Combat | -11 -10 -10 -9 -9 -9 -------- Run | Yrd Mat Min Mat Min Exi Hostile Shots Fired 263 | . 31 3 203 . 26 Missed 81 | . 11 . 63 . 7 Damage Taken 2360 | . 289 26 1750 . 295 Core 420 | . 15 . 357 . 48 Absorbed by Shields . | . . . . . . Redirected to Shielding 21 | . 3 . . . 18 Ignored by Resistances 69 | . . . 69 . . Core Remaining (%) 97 | 100 . 94 . . . Volleys Fired 155 | 11 14 4 116 . 10 Largest 2 | 2 2 2 2 . 2 Hottest 100 | 40 46 46 62 . 100 Shots Fired 280 | 22 28 8 210 . 12 Gun 234 | 22 28 8 174 . 2 Cannon 33 | . . . 32 . 1 Launcher 13 | . . . 4 . 9 Special . | . . . . . . Kinetic 266 | 22 28 8 206 . 2 Thermal 1 | . . . . . 1 Explosive . | . . . . . . Electromagnetic 13 | . . . 4 . 9 Robot Hit Streak 14 | 11 6 10 14 . 2 Robot Miss Streak 5 | 1 4 . 5 . 3 Penetration Max . | . . . . . . Secondary Targets 2 | . 1 . 1 . . Max Gunslinging Chain 1 | . 1 . 1 . . Shots Hit Robots 178 | 19 17 5 135 . 2 Core Hits 96 | 6 9 7 59 . 15 Critical Kills . | . . . . . . Critical Parts Destroyed 1 | . . . 1 . . Critical Strikes 1 | . . . 1 . . Destroy 1 | . . . 1 . . Melee Attacks . | . . . . . . Impact . | . . . . . . Slashing . | . . . . . . Piercing . | . . . . . . Sneak Attacks . | . . . . . . Combat Hostiles . | . . . . . . Follow-up Attacks . | . . . . . . Damage Inflicted 3150 | 148 275 117 2286 . 324 Guns 2411 | 148 275 83 1890 . 15 Cannons 335 | . . . 335 . . Explosions 332 | . . . 23 . 309 Melee . | . . . . . . Ramming 72 | . . 34 38 . . Kinetic 2746 | 148 275 83 2225 . 15 Thermal . | . . . . . . Explosive . | . . . . . . Electromagnetic 332 | . . . 23 . 309 Impact . | . . . . . . Slashing . | . . . . . . Piercing . | . . . . . . Highest Corruption 2 | . 1 1 1 1 2 Average Corruption 1 | . 1 1 1 1 1 Corruption Purged . | . . . . . . Corruption Blocked . | . . . . . . Effects 18 | . . 8 8 1 1 Message Errors 6 | . . 2 3 1 . Matter Fused 2 | . . 1 1 . . Heat Flow Errors 2 | . . 1 1 . . Energy Discharges 4 | . . 2 2 . . Parts Fused 1 | . . . 1 . . Data Loss (minor) 2 | . . 1 . . 1 Data Loss (major) 1 | . . 1 . . . Overload Shots . | . . . . . . Overflow Damage . | . . . . . . Projectiles . | . . . . . . Explosions . | . . . . . . Melee . | . . . . . . Knockbacks 3 | . . . 3 . . Impact . | . . . . . . Kinetic 3 | . . . 3 . . Secondary . | . . . . . . Self-Inflicted Damage 25 | . . . 16 . 9 Shots 2 | . . . 1 . 1 Rammed 11 | . . 5 6 . . Targets Rammed 12 | . . 6 6 . . Kicked . | . . . . . . Crushed 1 | . . 1 . . . Highest Temperature 263 | . 25 263 165 . 18 Average Temperature 28 | . 9 140 21 . 10 Received Heat Transfer 990 | . 126 . 804 . 60 Siege Activations . | . . . . . . Robots Corrupted . | . . . . . . Combat Hostiles . | . . . . . . Parts Fried . | . . . . . . Impact Corruptions . | . . . . . . Robots Melted . | . . . . . . Combat Hostiles . | . . . . . . Parts Melted . | . . . . . . Heat Transferred . | . . . . . . Parts Sabotaged . | . . . . . . Parts Stolen . | . . . . . . Parts Stripped . | . . . . . . Power Chain Reactions . | . . . . . . Alert | -11 -10 -10 -9 -9 -9 ------- Run | Yrd Mat Min Mat Min Exi Peak Influence 646 | 15 189 133 646 251 . Initial 251 | . 9 73 . 251 . Average 161 | 6 70 46 244 251 . Maximum Alert Level 2 | . . . 2 1 . Low Security (%) 68 | 100 100 100 49 . . Level 1 20 | . . . 30 100 . Level 2 10 | . . . 20 . . Level 3 . | . . . . . . Level 4 . | . . . . . . Level 5 . | . . . . . . High Security . | . . . . . . Max Security . | . . . . . . Squads Dispatched 6 | . 2 . 4 . . Investigation 2 | . . . 2 . . Extermination . | . . . . . . Reinforcement 4 | . 2 . 2 . . Assault . | . . . . . . Garrison . | . . . . . . Intercept . | . . . . . . Searches Triggered . | . . . . . . Construction Impeded . | . . . . . . Haulers Reinforced . | . . . . . . Active Scanning Responses . | . . . . . . Cargo Convoy Interrupts . | . . . . . . Stealth | -11 -10 -10 -9 -9 -9 --------- Run | Yrd Mat Min Mat Min Exi Distress Signals 2 | . . . 2 . . Communications Jammed . | . . . . . . Distress Signals . | . . . . . . Times Spotted 69 | . 8 3 50 . 8 Peak Tracking Total 9 | . 3 3 8 . 9 Tactical Retreats 8 | . 1 . 7 . . Traps | -11 -10 -10 -9 -9 -9 ------- Run | Yrd Mat Min Mat Min Exi Traps Triggered 3 | . 2 1 . . . Indirectly . | . . . . . . Trap Hack Attempts . | . . . . . . Triggered . | . . . . . . Disarmed . | . . . . . . Reprogrammed . | . . . . . . Reused . | . . . . . . Traps Extracted . | . . . . . . Installed . | . . . . . . Triggered 2 | . . 2 . . . Machines | -11 -10 -10 -9 -9 -9 ---------- Run | Yrd Mat Min Mat Min Exi Machines Disabled 4 | . . . 1 . 3 Max in Single Turn 2 | . . . 1 . 2 Machines Repaired . | . . . . . . Machines Dismantled . | . . . . . . Machines Sabotaged . | . . . . . . Overloaded Fab Kills . | . . . . . . Hacking | -11 -10 -10 -9 -9 -9 --------- Run | Yrd Mat Min Mat Min Exi Machines Accessed 11 | . 1 1 8 . 1 Terminals 8 | . 1 . 7 . . Fabricators . | . . . . . . Repair Stations . | . . . . . . Recycling Units 1 | . . . 1 . . Scanalyzers . | . . . . . . Garrison Access . | . . . . . . Total Hacks 18 | . 2 1 14 . 1 Successful 13 | . 2 1 9 . 1 Failed 5 | . . . 5 . . Catastrophic 2 | . . . 2 . . Database Lockouts . | . . . . . . Manual 17 | . 2 . 14 . 1 Terminals 15 | . 2 . 13 . . Fabricators . | . . . . . . Repair Stations . | . . . . . . Recycling Units 1 | . . . 1 . . Scanalyzers . | . . . . . . Garrison Access . | . . . . . . Terminal Hacks 3 | . . 1 1 . 1 Robot Analysis 1 | . . . 1 . . Open Door 1 | . . 1 . . . Derelict Proto ID Bank 1 | . . . . . 1 Fabricator Hacks . | . . . . . . Repair Station Hacks . | . . . . . . Recycling Unit Hacks . | . . . . . . Scanalyzer . | . . . . . . Garrison Access Hacks . | . . . . . . Unauthorized Hacks 10 | . 2 . 8 . . Terminals 9 | . 2 . 7 . . Botnet 2 | . 1 . 1 . . Skim 7 | . 1 . 6 . . Fabricators . | . . . . . . Repair Stations . | . . . . . . Recycling Units 1 | . . . 1 . . Tunnel 1 | . . . 1 . . Scanalyzers . | . . . . . . Garrison Access . | . . . . . . Data Cores Recovered . | . . . . . . Used . | . . . . . . Hacking Detections 5 | . 1 . 4 . . Full Trace Events 1 | . . . 1 . . Feedback Events 1 | . . . 1 . . Corruption 1 | . . . 1 . . Feedback Blocked . | . . . . . . Robot Schematics Acquired . | . . . . . . Robots Built . | . . . . . . Authchips . | . . . . . . Time . | . . . . . . Total Robot Build Rating . | . . . . . . Part Schematics Acquired . | . . . . . . Parts Built . | . . . . . . Authchips . | . . . . . . Time . | . . . . . . Total Part Build Rating . | . . . . . . Parts Repaired . | . . . . . . Time . | . . . . . . Parts Recycled . | . . . . . . Recycled Matter . | . . . . . . Retrieved Matter . | . . . . . . Retrieved Components . | . . . . . . Parts Scanalyzed . | . . . . . . Part Schematics Acquired . | . . . . . . Parts Damaged . | . . . . . . Bothacking | -11 -10 -10 -9 -9 -9 ------------ Run | Yrd Mat Min Mat Min Exi Used RIF Installer . | . . . . . . Robots Hacked . | . . . . . . Non-combat . | . . . . . . Combat . | . . . . . . Robot Hacks Applied . | . . . . . . Relay Couplers Released . | . . . . . . Fabnet Peak Effective % . | . . . . . . Robots Rewired . | . . . . . . Allies Hacked . | . . . . . . Hacks Repelled . | . . . . . . Allies | -11 -10 -10 -9 -9 -9 -------- Run | Yrd Mat Min Mat Min Exi Total Allies 3 | . . . . 3 . Largest Group 3 | . . . . 3 3 Highest-Rated Group 40 | . . . . 40 40 Highest-Rated Ally 16 | . . . . 16 16 Total Orders 1 | . . . . . 1 STAY 1 | . . . . . 1 Ally Attacks 13 | . . . . . 13 Total Damage 82 | . . . . . 82 Kills 1 | . . . . . 1 Allies Corrupted . | . . . . . . Allies Melted . | . . . . . . Intel | -11 -10 -10 -9 -9 -9 ------- Run | Yrd Mat Min Mat Min Exi Robot Analysis Total 1 | . . . 1 . . Derelict Logs Recovered 2 | . . 2 . . . Drone Launches . | . . . . . . Drone Recoveries . | . . . . . . Exploration | -11 -10 -10 -9 -9 -9 ------------- Run | Yrd Mat Min Mat Min Exi Turns Passed 3532 | 138 309 915 1711 130 329 Spaces Moved 1728 | 64 153 472 749 86 204 Core 11 | 10 1 . . . . Treads 1226 | 54 152 472 546 . 2 Legs . | . . . . . . Wheels 491 | . . . 203 86 202 Hover . | . . . . . . Flight . | . . . . . . Fastest Speed 50 | 50 160 152 120 135 135 Average Speed 162 | 151 160 159 173 135 142 Slowest Speed 300 | 200 300 160 250 135 240 Overloaded Moves . | . . . . . . Propulsion Burnouts . | . . . . . . Robots Hopped . | . . . . . . Cave-ins Triggered . | . . . . . . Exploration Rate (%) 40 | 5 35 90 61 10 42 Regions Visited 5 Branch Regions 3 Pre-discovered Areas 2 | . . . 2 . . Known Exits Taken 1 | . . 1 . . . Unknown Exits Taken 4 | 1 1 . 1 1 . Scrap Searched . | . . . . . . Spaces Dug 2 | . . . 2 . . Terrain Destroyed 20 | . . . 3 . 17 Melee . | . . . . . . Projectile 4 | . . . 3 . 1 AOE 16 | . . . . . 16 Terrain Rammed . | . . . . . . Walls Destroyed . | . . . . . . Machines Disabled . | . . . . . . Actions | -11 -10 -10 -9 -9 -9 --------- Run | Yrd Mat Min Mat Min Exi Total 2170 | 84 185 621 947 102 231 Wait 184 | 2 . 133 33 13 3 Move 1723 | 63 152 471 748 85 204 Hop . | . . . . . . Pick Up 22 | 1 6 . 13 2 . Fast Attach 20 | 7 5 1 6 . 1 Attach 8 | . . . 5 . 3 Detach 4 | . . . . . 4 Swap 23 | . 5 4 12 . 2 Drop 19 | . 3 2 8 2 4 Fire 155 | 11 14 4 116 . 10 Melee . | . . . . . . Ram 1 | . . . 1 . . Kick . | . . . . . . Crush 11 | . . 6 5 . . Escape Stasis . | . . . . . . Rewire . | . . . . . . Trap . | . . . . . . Miscellaneous . | . . . . . . Route ------- -11/Scrapyard -10/Materials -10/Mines (discovered 2 exits: *Mat x2) -9/Materials (discovered 2 exits: [*Mat] / [*Min]) -9/Mines -9/Exiles (discovered 1 exit: [*Min]) History --------- Turn | Location | Event 40 | -11/Scrapyard | Discovered new exit (range 14) 139 | -11/Scrapyard | Entered Materials 307 | -10/Materials | Build established: Mutant 408 | -10/Materials | Discovered new exit (range 12) 448 | -10/Materials | Entered Mines 501 | -10/Mines | Discovered new exit (range 6) 681 | -10/Mines | Learned Materials terminal intel 822 | -10/Mines | Identified exit to Materials 1159 | -10/Mines | Met a Derelict who couldn't figure out how to use a Trap Extractor 1363 | -10/Mines | Entered Materials 1363 | -9/Materials | Evolved 2 slots: Utility x2 1364 | -9/Materials | Loaded intel: 12 terminal locations 2113 | -9/Materials | Core integrity fell below 50% 2131 | -9/Materials | Discovered new exit (range 15) 2144 | -9/Materials | Lost 6 parts (1n3u2w) 2849 | -9/Materials | Core integrity fell below 20% 2925 | -9/Materials | Learned Storage emergency access door positions 2995 | -9/Materials | Learned location of Storage (-8) 3054 | -9/Materials | Discovered new exit (range 11) 3069 | -9/Materials | Build established: Scavenger-Mutant 3074 | -9/Materials | Entered Mines 3077 | -9/Mines | Assisted by bots powering up and referring to "LRC-V3" 3184 | -9/Mines | Deemed a non-threat by the Exiles lab entrance 3186 | -9/Mines | Discovered new exit (range 5) 3204 | -9/Mines | Entered Exiles 3204 | -9/Exiles | Accompanied by 3 allies 3222 | -9/Exiles | Discovered new exit (range 15) 3238 | -9/Exiles | Met 8R-AWN 3260 | -9/Exiles | Met EX-HEX 3296 | -9/Exiles | Met EX-BIN 3312 | -9/Exiles | Aligned with FarCom system 3314 | -9/Exiles | Given EX-Vault access code 3352 | -9/Exiles | Opened EX-Vault 3361 | -9/Exiles | Found YOLO Cannon 3395 | -9/Exiles | Warned to stay clear of 0b10 Research branches 3500 | -9/Exiles | Attacked by the Exiles 3533 | -9/Exiles | Destroyed by 8R-AWN with 8R-AWN's Boregun Last Messages --------------- 03512_ HV Slug penetrates Wall. 03514_ Extracted 10 matter. 03515_ as-52101 destroyed. 03519_ as-52647 IFF system glitched. 03519_ as-52647 destroyed. 03519_ HV Slug penetrates Trooper 2a. 03519_ Trooper 2a destroyed. 03524_ Penetrated by HV Slug. 03524_ HV Slug penetrates Assembled Analyzer. 03524_ Assembled Analyzer disabled. 03524_ Penetrated by HV Slug. 03524_ HV Slug penetrates Assembled Analyzer. 03526_ Penetrated by HV Slug. 03526_ HV Slug penetrates Machine. 03526_ Machine disabled. 03526_ HV Slug penetrates Wall. 03529_ Penetrated by HV Slug. 03529_ HV Slug penetrates Earth. 03529_ HV Slug penetrates Wall. 03531_ Penetrated by HV Slug. Map ----- +----------------------------------------------------+ | # ###"" """"#????????????????????????????????? | | " """"#????????????????????????????????? | | " """#????????????????????????????????? | | " """#????????????????????????????????? | | " """#????????????????????????????????? | | " """#????????????????????????????????? | | " """##???????????????????????????????? | | # """""???????????????????????????????? | | # """##???????????????????????????????? | | #" "X" """"????????????????????????????????? | | #" """ #????????????????????????????????? | | #" """""""""#????????????????????????????????? | | #" ###########????????????????????????????????? | | "" #??????????????????????????????????????????? | | " #??????? ??????????????????????????????????? | | " ##??????? ?????????????????????????????????? | | " ##???####;######??????????????????????????? | | #####"""" """"##?????????????????????????? | | " """ """"##????????????????????????? | | "" " #????????????????????????? | | " """#????????????????????????? | | a"#???????????#####????????? | | " "##?????????##" #????????? | | "###???????#" #????????? | | """" ""#??????##" ##???????? | | ###""" @"#????### ###?????? | | ??#####""" !##???# ####### | | ??????##""" !!;#?## #""""# | | ???????#"""" ;## | | ???????#"" g ## * | | ???????"""" * % [ #### | | ??????" =%! %= ""#?#"""""#### | | ????" * ##?#######??### | | ????? % ; ;;#?????????????? | | ???? ;; #?????????????? | | ???? % #; ##?????????????? | | ????? "" % ## ##??????????????? | | ???????"" " " ""# %% ##?####???????????????? | | ????????##""" """## ##?????????????????????? | | ?????????###"""???#### ####??????????????????????? | | ???????????##???????? #??????????????????????????? | | ?????????????????????????????????????????????????? | | ?????????????????????????????????????????????????? | | ?????????????????????????????????????????????????? | | ?????????????????????????????????????????????????? | | ?????????????????????????????????????????????????? | | ?????????????????????????????????????????????????? | | ?????????????????????????????????????????????????? | | ?????????????????????????????????????????????????? | | ?????????????????????????????????????????????????? | +----------------------------------------------------+ Best States ------------- Heat Dissipation 28 Energy Generation 14 Energy Capacity 265 Matter Stores 300 Matter Capacity 300 Sight Range 16 Terrain Scan Range 16 Terrain Scan Density 10 Armor Coverage 300 Resistance: KI 20 Core Shielding 20 Weapon Shielding 33 Evasion (%) 40 Recoil Reduction 2 Item Schematics ----------------- None Robot Schematics ------------------ None Fabricated ------------ Nothing Alien Tech Used ----------------- None Achievements -------------- None Challenges ------------ None Game ------ Seed ScrapoidAntigravFlamer Manual? 0 Play Time 00:19:51 Cumulative 215.3 hours Start 2024.09.04 @ 22:50:17 End 2024.09.04 @ 23:07:15 Sessions 1 Manual Loads 0 Difficulty Rogue Special Mode None Game No. 187 Rogue 187 Adventurer 0 Explorer 0 Win Type - Total 1 Types 0/0/0/1/0/0/0/0/0 Lore% 63 Gallery% 73 Achievement% 54 Wizard Run 0 Options --------- Layout 2 ASCII 0 Keyboard 1 Movement Vi Keybinds 0 Fullscreen 1 Font 32/SmallcapsGlow Map View 77x44 Zoom Use 0% Tactical HUD 1 Map Filters NONE Filters NONE Steam 1 RUN: 1d41601d-1c79-44aa-9d31-6f7ad967afc8